bitfinex-derivatives/quotes_BTCF0:USTF0_20250121
["timestamp","ask_amount","ask_price","bid_price","bid_amount"]
[1737425541795,0.50138312,102400.0,102380.0,0.528922]
[1737425542091,0.50138312,102400.0,102380.0,0.52838332]
[1737425542092,0.039119,102390.0,102380.0,0.52838332]
[1737425542293,0.039119,102390.0,102380.0,0.48926132]
[1737425542483,0.039119,102390.0,102380.0,0.52838332]
[1737425542691,0.039122,102380.0,102370.0,0.532026]
[1737425542885,0.039122,102380.0,102370.0,0.45312206]
[1737425543083,0.46226612,102400.0,102380.0,0.039122]
[1737425543284,0.039119,102390.0,102380.0,0.3608]
[1737425543606,0.039119,102390.0,102370.0,0.399925]
[1737425543899,0.46226612,102400.0,102380.0,0.3608]
[1737425544099,0.10146612,102400.0,102390.0,0.399919]
[1737425544301,0.10146612,102400.0,102390.0,0.3608]
[1737425544595,0.14058112,102400.0,102380.0,0.399922]
[1737425544790,0.14058112,102400.0,102390.0,0.3608]
[1737425545102,0.039122,102380.0,102370.0,0.3608]
[1737425545288,0.039122,102380.0,102370.0,0.41350847]
[1737425545698,0.039119,102390.0,102370.0,0.45263447]
[1737425545892,0.039119,102390.0,102380.0,0.04]
[1737425546394,0.36036612,102400.0,102380.0,0.4008]
[1737425546596,0.10146612,102400.0,102390.0,0.399919]
[1737425546992,0.039108,102420.0,102400.0,0.039113]
[1737425547192,0.50693827,102440.0,102420.0,0.039107]
[1737425547397,0.039103,102430.0,102410.0,0.399911]
[1737425547601,0.039103,102430.0,102420.0,0.3608]
[1737425547804,0.039107,102420.0,102410.0,0.3608]
[1737425548302,0.039107,102420.0,102410.0,0.3744626]
[1737425548900,0.039107,102420.0,102410.0,0.0136626]
[1737425549093,0.039114,102410.0,102390.0,0.3608]
[1737425549295,0.3608,102410.0,102390.0,0.05270747]
[1737425549489,0.039115,102400.0,102390.0,0.05270747]
[1737425550001,0.3608,102400.0,102380.0,0.04]
[1737425550190,1.539119,102390.0,102380.0,0.09276378]
[1737425550397,0.039119,102390.0,102380.0,0.05348893]
[1737425550898,0.039111,102410.0,102390.0,0.039117]
[1737425551098,0.039108,102420.0,102400.0,0.039113]
[1737425551296,0.039108,102420.0,102410.0,0.3608]
[1737425551807,0.399908,102420.0,102400.0,0.399913]
[1737425551994,0.399908,102420.0,102400.0,0.4526611]
[1737425552301,0.3608,102420.0,102400.0,0.039113]
[1737425552503,0.399909,102420.0,102400.0,0.039113]
[1737425553303,0.039111,102410.0,102400.0,0.039113]
[1737425553497,0.3608,102420.0,102400.0,0.039113]
[1737425553798,0.039111,102410.0,102400.0,0.0918619]
[1737425554003,0.039111,102410.0,102390.0,0.039118]
[1737425554189,0.039115,102400.0,102390.0,0.0527576]
[1737425554391,0.039109,102420.0,102400.0,0.039114]
[1737425554594,0.039109,102420.0,102410.0,0.3608]
[1737425554798,0.039109,102420.0,102400.0,0.399914]
[1737425555104,0.039111,102410.0,102400.0,0.399914]
[1737425555900,0.1244,102430.0,102410.0,0.039111]
[1737425556100,0.163506,102430.0,102410.0,0.399911]
[1737425556406,0.163506,102430.0,102420.0,0.3608]
[1737425556604,0.039107,102420.0,102410.0,0.3608]
[1737425557003,2.024304,102430.0,102410.0,0.3608]
[1737425557209,0.59523627,102440.0,102420.0,0.3608]
[1737425557210,0.63433627,102440.0,102420.0,0.3608]
[1737425558091,0.10703627,102440.0,102420.0,0.3608]
[1737425558295,0.10703627,102440.0,102430.0,0.399903]
[1737425558502,0.00146512,102460.0,102440.0,0.039099]
[1737425558699,0.00146512,102460.0,102440.0,0.399899]
[1737425559592,0.13681062,102450.0,102420.0,0.125]
[1737425559904,0.40135712,102460.0,102430.0,0.399903]
[1737425560105,0.40135712,102460.0,102430.0,0.3608]
[1737425560302,0.04055712,102460.0,102440.0,0.399899]
[1737425561003,0.00146512,102460.0,102450.0,0.399896]
[1737425561601,0.1305,102470.0,102450.0,0.399896]
[1737425561804,0.2006016,102480.0,102470.0,0.039088]
[1737425561997,0.18137664,102480.0,102470.0,0.399888]
[1737425562197,0.09461224,102480.0,102470.0,0.399888]
[1737425562405,0.03153602,102480.0,102470.0,0.523288]
[1737425562806,0.02354601,102480.0,102470.0,0.523288]
[1737425563306,0.02354601,102480.0,102470.0,0.399888]
[1737425563903,0.02354601,102480.0,102470.0,0.3608]
[1737425564101,0.06263001,102480.0,102460.0,0.399891]
[1737425564501,0.02354601,102480.0,102470.0,0.399888]
[1737425565708,0.24252767,102490.0,102470.0,0.039088]
[1737425566008,0.24252767,102490.0,102470.0,0.399888]
[1737425566605,0.24252767,102490.0,102470.0,0.039088]
[1737425566807,0.24252767,102490.0,102460.0,0.399892]
[1737425567105,1.5,102480.0,102460.0,0.399892]
[1737425567603,1.539086,102480.0,102460.0,0.039092]
[1737425569408,0.039089,102470.0,102450.0,0.37413118]
[1737425569604,1.8608,102480.0,102450.0,0.01333118]
[1737425569811,0.039092,102460.0,102440.0,0.3608]
[1737425570005,0.4848,102470.0,102440.0,0.3608]
[1737425570309,0.00056001,102480.0,102470.0,0.039088]
[1737425570498,1.50146481,102490.0,102470.0,0.399888]
[1737425570907,0.00146481,102490.0,102470.0,0.399888]
[1737425571107,0.00146481,102490.0,102470.0,0.039088]
[1737425571307,0.039085,102480.0,102450.0,0.530593]
[1737425571913,0.039085,102480.0,102450.0,0.4915]
[1737425572111,0.039085,102480.0,102460.0,0.039092]
[1737425572312,0.039085,102480.0,102450.0,0.3608]
[1737425572498,0.3608,102480.0,102450.0,0.3608]
[1737425572705,0.36226481,102490.0,102450.0,0.3608]
[1737425572909,0.039084,102480.0,102460.0,0.160691]
[1737425573206,0.039084,102480.0,102460.0,0.039091]
[1737425573411,0.039091,102470.0,102440.0,0.41281562]
[1737425573616,0.171091,102470.0,102440.0,0.41281562]
[1737425573813,0.531891,102470.0,102440.0,0.41281562]
[1737425574609,0.531891,102470.0,102450.0,0.3608]
[1737425574912,0.399891,102470.0,102450.0,0.399894]
[1737425575708,0.08710299,102480.0,102460.0,0.3608]
[1737425575904,0.08710299,102480.0,102460.0,0.03909]
[1737425575905,0.12618799,102480.0,102460.0,0.03909]
[1737425576104,0.12618799,102480.0,102460.0,0.39989]
[1737425576511,0.12618799,102480.0,102460.0,0.03909]
[1737425576712,0.12618799,102480.0,102450.0,0.399895]
[1737425576713,0.039088,102470.0,102450.0,0.399895]
[1737425576903,0.039088,102470.0,102460.0,0.3608]
[1737425577107,0.12619099,102470.0,102460.0,0.399892]
[1737425577304,0.08710299,102470.0,102460.0,0.399892]
[1737425578410,0.08710299,102470.0,102460.0,0.039092]
[1737425578910,0.08710299,102470.0,102460.0,0.53670262]
[1737425579117,0.27438287,102500.0,102490.0,0.03908]
[1737425579315,0.31345987,102500.0,102490.0,0.03908]
[1737425579715,0.31345987,102500.0,102480.0,0.399883]
[1737425579915,0.85841062,102490.0,102440.0,0.039099]
[1737425580105,0.3608,102460.0,102430.0,0.3608]
[1737425580413,0.039103,102430.0,102420.0,0.01314581]
[1737425581218,0.039103,102430.0,102420.0,0.23591968]
[1737425581706,0.399903,102430.0,102420.0,0.23591968]
[1737425582111,1.98786001,102440.0,102420.0,0.23591968]
[1737425582316,2.026401,102440.0,102420.0,0.23591968]
[1737425582514,0.399903,102430.0,102420.0,0.23591968]
[1737425582717,0.039103,102430.0,102420.0,0.22289813]
[1737425583018,0.83671362,102430.0,102420.0,0.07096813]
[1737425583321,0.039107,102420.0,102410.0,1e-08]
[1737425583514,0.399907,102420.0,102410.0,1e-08]
[1737425583714,0.699907,102420.0,102410.0,1e-08]
[1737425585420,0.039119,102390.0,102380.0,0.38230553]
[1737425585721,0.89764546,102390.0,102360.0,0.1750111]
[1737425585917,0.3608,102370.0,102360.0,0.1750111]
[1737425586219,0.039132,102360.0,102340.0,0.342843]
[1737425586413,0.89754462,102350.0,102340.0,0.342843]
[1737425586618,0.89764563,102350.0,102340.0,0.342843]
[1737425587222,0.89765494,102350.0,102340.0,0.342843]
[1737425587521,0.89754462,102350.0,102340.0,0.342843]
[1737425587919,1.19754462,102350.0,102340.0,0.342843]
[1737425588135,0.039138,102340.0,102330.0,0.37541448]
[1737425588419,0.40005236,102340.0,102330.0,0.37541448]
[1737425588921,0.00011436,102340.0,102330.0,0.73621448]
[1737425589121,0.00011436,102340.0,102330.0,0.50551448]
[1737425589806,0.00011436,102340.0,102330.0,0.13019676]
[1737425590012,0.00011436,102340.0,102330.0,0.49099676]
[1737425590213,0.00011436,102340.0,102330.0,0.13019676]
[1737425591120,0.03925236,102340.0,102330.0,0.13019676]
[1737425591321,0.03925236,102340.0,102330.0,0.17019676]
[1737425591519,0.40005236,102340.0,102330.0,0.17019676]
[1737425591721,0.36091436,102340.0,102330.0,0.17019676]
[1737425592221,0.00011436,102340.0,102330.0,0.57013776]
[1737425592426,0.17426851,102350.0,102330.0,0.57013776]
[1737425592720,0.71101313,102350.0,102340.0,0.04]
[1737425593518,0.53674462,102350.0,102340.0,0.04]
[1737425595316,0.83674462,102350.0,102330.0,9.676e-05]
[1737425595516,0.039145,102320.0,102300.0,0.2303]
[1737425595714,0.039145,102320.0,102310.0,0.04]
[1737425596025,0.399945,102320.0,102310.0,0.04]
[1737425596422,0.4000478,102320.0,102310.0,0.04]
[1737425596618,0.399945,102320.0,102310.0,0.04]
[1737425596819,0.039149,102310.0,102300.0,0.1]
[1737425597029,1.99761062,102310.0,102260.0,0.248]
[1737425597214,0.399957,102290.0,102260.0,0.287167]
[1737425597614,8.974e-05,102280.0,102260.0,0.6088]
[1737425597922,0.53686116,102270.0,102260.0,0.1254]
[1737425598531,0.40005054,102270.0,102260.0,0.1254]
[1737425599733,0.039168,102260.0,102250.0,0.01244303]
[1737425599917,0.399968,102260.0,102250.0,7.166e-05]
[1737425600121,0.039176,102240.0,102230.0,0.1267]
[1737425600317,0.89758662,102240.0,102230.0,0.1267]
[1737425600522,0.03918,102230.0,102220.0,0.01189031]
[1737425600830,0.3608,102230.0,102200.0,0.22396733]
[1737425601028,0.53692112,102220.0,102200.0,0.58476733]
[1737425601238,0.4001105,102220.0,102200.0,0.62395733]
[1737425601424,0.4001105,102220.0,102200.0,0.46226733]
[1737425601729,0.3608,102210.0,102200.0,0.10146733]
[1737425601929,0.3608,102210.0,102200.0,0.13809758]
[1737425602125,0.0001265,102220.0,102200.0,0.49889758]
[1737425602327,0.0001265,102220.0,102210.0,0.039187]
[1737425602927,0.53679062,102240.0,102210.0,0.399987]
[1737425603147,0.3608,102230.0,102210.0,0.039187]
[1737425603432,0.3608,102230.0,102200.0,0.11359542]
[1737425603631,0.399984,102220.0,102200.0,0.11359542]
[1737425603833,0.399984,102220.0,102200.0,0.15278642]
[1737425604026,0.399984,102220.0,102200.0,0.17728775]
[1737425604027,6.356e-05,102210.0,102200.0,0.17728775]
[1737425605634,0.3608,102230.0,102200.0,0.49889675]
[1737425605832,0.039181,102230.0,102210.0,0.3608]
[1737425606034,0.399981,102230.0,102200.0,0.53808775]
[1737425606332,0.039185,102220.0,102200.0,0.15278642]
[1737425606724,0.039185,102220.0,102200.0,0.51358642]
[1737425606933,0.3608,102230.0,102200.0,0.51358642]
[1737425607130,0.399981,102230.0,102200.0,0.51358642]
[1737425607431,0.3608,102230.0,102220.0,0.039184]
[1737425607740,0.3608,102250.0,102230.0,0.039178]
[1737425608033,0.39997,102260.0,102240.0,0.399976]
[1737425608226,0.039172,102250.0,102220.0,0.292783]
[1737425608427,0.3608,102250.0,102220.0,0.292783]
[1737425608627,0.399972,102250.0,102230.0,0.039179]
[1737425608826,0.399972,102250.0,102230.0,0.399979]
[1737425609226,0.3608,102250.0,102230.0,0.522379]
[1737425609630,0.399973,102250.0,102230.0,0.54687366]
[1737425610030,0.399973,102250.0,102230.0,0.522379]
[1737425610733,0.039176,102240.0,102230.0,0.1224]
[1737425610938,0.49761062,102240.0,102200.0,0.11359542]
[1737425611125,0.3608,102250.0,102210.0,0.399986]
[1737425611330,0.17598062,102260.0,102240.0,0.039176]
[1737425611530,0.3608,102250.0,102220.0,0.773284]
[1737425611732,0.53678762,102240.0,102220.0,0.773284]
[1737425611933,0.53678762,102240.0,102220.0,0.79777975]
[1737425612234,0.53678762,102240.0,102220.0,0.43697975]
[1737425612826,0.403277,102240.0,102220.0,0.43697975]
[1737425613030,0.0033,102240.0,102230.0,0.03918]
[1737425613237,0.01112,102240.0,102230.0,0.03918]
[1737425613831,0.54790662,102240.0,102230.0,0.02449503]
[1737425614029,0.54790662,102240.0,102220.0,0.2453]
[1737425614336,0.39998,102230.0,102220.0,0.2453]
[1737425614839,0.3608,102230.0,102220.0,0.2453]
[1737425615024,0.37192,102240.0,102220.0,0.6061]
[1737425615229,0.00060001,102260.0,102250.0,0.039172]
[1737425615432,0.18342523,102270.0,102250.0,0.039172]
[1737425615832,0.54422523,102270.0,102250.0,0.039172]
[1737425616233,0.14426023,102270.0,102260.0,0.399968]
[1737425616434,0.15208023,102270.0,102260.0,0.399968]
[1737425616735,0.53823272,102300.0,102260.0,0.649568]
[1737425616940,0.0406221,102300.0,102290.0,0.3608]
[1737425617140,0.0014681,102300.0,102290.0,0.399957]
[1737425617331,0.399942,102330.0,102310.0,0.039147]
[1737425617534,0.399942,102330.0,102310.0,0.399947]
[1737425617838,2.03674862,102340.0,102320.0,0.399944]
[1737425618153,0.039146,102320.0,102300.0,0.164952]
[1737425618331,0.53675662,102320.0,102300.0,0.525752]
[1737425618532,0.039149,102310.0,102290.0,0.399956]
[1737425618737,0.17596562,102300.0,102280.0,0.399961]
[1737425618936,0.53676562,102300.0,102280.0,0.399961]
[1737425619443,0.039155,102300.0,102290.0,0.3608]
[1737425619742,0.039155,102300.0,102280.0,0.399961]
[1737425619939,0.399955,102300.0,102280.0,0.399961]
[1737425620133,0.53676562,102300.0,102280.0,0.039161]
[1737425620735,0.039158,102290.0,102270.0,0.4875]
[1737425621036,0.039158,102290.0,102270.0,0.526663]
[1737425621444,1.5,102280.0,102270.0,0.4875]
[1737425621629,1.539161,102280.0,102260.0,0.162968]
[1737425621829,0.399958,102290.0,102270.0,0.039163]
[1737425622028,0.399954,102300.0,102280.0,0.03916]
[1737425622641,0.399954,102300.0,102270.0,0.3608]
[1737425622936,0.399958,102290.0,102260.0,0.49704451]
[1737425623131,0.039161,102280.0,102260.0,0.53621251]
[1737425623643,0.399958,102290.0,102260.0,0.53621251]
[1737425623830,0.399962,102280.0,102260.0,0.53621251]
[1737425624836,0.399962,102280.0,102260.0,0.13624451]
[1737425625045,0.399964,102270.0,102260.0,0.01244451]
[1737425625236,0.039169,102260.0,102240.0,0.1281]
[1737425625431,0.399972,102250.0,102240.0,0.1281]
[1737425625649,0.399972,102250.0,102230.0,0.1654676]
[1737425625839,0.3608,102240.0,102230.0,0.1654676]
[1737425626248,0.3608,102240.0,102230.0,0.18996336]
[1737425626448,0.399972,102250.0,102230.0,0.18996336]
[1737425627049,0.399972,102250.0,102230.0,0.20187972]
[1737425627548,0.3608,102240.0,102230.0,0.16270072]
[1737425627854,0.3608,102240.0,102230.0,0.03800072]
[1737425628043,0.399976,102240.0,102230.0,0.03800072]
[1737425628549,0.399976,102240.0,102230.0,0.01350496]
[1737425629242,0.399976,102240.0,102230.0,0.01203808]
[1737425629546,0.22147299,102240.0,102230.0,0.01203808]
[1737425629742,0.22147299,102240.0,102230.0,0.41201808]
[1737425630247,0.22147299,102240.0,102230.0,0.4365123]
[1737425635352,0.0014678,102280.0,102230.0,0.67113678]
[1737425635548,0.039167,102270.0,102250.0,0.399972]
[1737425635750,0.12540677,102270.0,102250.0,0.399972]
[1737425635946,0.48620677,102270.0,102250.0,0.039172]
[1737425636541,0.12541077,102260.0,102240.0,0.039175]
[1737425636848,0.48621077,102260.0,102240.0,0.039175]
[1737425637050,0.48621077,102260.0,102240.0,0.06366735]
[1737425637250,0.44703977,102250.0,102240.0,0.02449235]
[1737425637550,0.48621177,102250.0,102240.0,0.02449235]
[1737425637855,0.48621177,102250.0,102230.0,0.05121708]
[1737425638059,0.3608,102240.0,102230.0,0.05121708]
[1737425638953,0.3608,102250.0,102230.0,0.03653318]
[1737425639150,0.3608,102250.0,102240.0,0.039175]
[1737425639356,0.75110582,102260.0,102240.0,0.039175]
[1737425639651,0.58943682,102260.0,102250.0,0.039172]
[1737425640052,0.22863682,102260.0,102250.0,0.039172]
[1737425640265,0.22863682,102260.0,102250.0,0.522772]
[1737425640952,0.22495973,102260.0,102250.0,0.83440649]
[1737425641157,0.22495973,102260.0,102250.0,0.74816672]
[1737425641455,0.0014678,102280.0,102270.0,0.039164]
[1737425641657,0.0406288,102280.0,102270.0,0.039164]
[1737425641961,0.0427488,102280.0,102270.0,0.039164]
[1737425642352,0.0035878,102280.0,102270.0,0.48620377]
[1737425642659,0.00146732,102310.0,102300.0,0.039153]
[1737425642852,0.039142,102330.0,102320.0,0.039145]
[1737425643252,0.755039,102340.0,102320.0,0.039145]
[1737425643455,1.62537477,102350.0,102330.0,0.399939]
[1737425643759,1.62537477,102350.0,102330.0,0.3608]
[1737425643760,1.539135,102350.0,102330.0,0.3608]
[1737425643959,0.039135,102350.0,102340.0,0.039138]
[1737425644161,0.74022466,102360.0,102340.0,0.039138]
[1737425644457,2.27935566,102360.0,102340.0,0.039138]
[1737425644754,0.26022466,102360.0,102350.0,0.399934]
[1737425645261,0.25875812,102360.0,102350.0,0.399934]
[1737425645850,0.25875812,102360.0,102350.0,0.039134]
[1737425647158,0.25875812,102360.0,102350.0,0.399934]
[1737425647850,0.25875812,102360.0,102350.0,0.039134]
[1737425648048,0.25875812,102360.0,102340.0,0.3608]
[1737425648254,0.29789112,102360.0,102340.0,0.039137]
[1737425648559,0.65869112,102360.0,102340.0,0.039137]
[1737425649460,0.3608,102360.0,102340.0,0.039137]
[1737425649661,0.039134,102350.0,102340.0,0.01184658]
[1737425649854,0.039134,102350.0,102330.0,0.399939]
[1737425650162,0.3608,102340.0,102330.0,0.039139]
[1737425650356,0.3608,102340.0,102320.0,0.399944]
[1737425650656,0.039144,102330.0,102310.0,0.16905917]
[1737425650849,0.53647284,102330.0,102310.0,0.16905917]
[1737425651162,0.399945,102320.0,102310.0,0.16905917]
[1737425651361,0.039149,102310.0,102300.0,0.22770942]
[1737425651557,0.53647784,102310.0,102300.0,0.22770942]
[1737425652262,0.5365534,102310.0,102300.0,0.22770942]
[1737425652764,0.40002456,102310.0,102300.0,0.22770942]
[1737425653064,7.556e-05,102310.0,102300.0,0.039153]
[1737425653266,0.03922456,102310.0,102290.0,0.039156]
[1737425653462,7.556e-05,102310.0,102290.0,0.3608]
[1737425653758,0.039142,102330.0,102310.0,0.039146]
[1737425654061,0.38668706,102340.0,102300.0,0.3608]
[1737425654062,0.399946,102320.0,102300.0,0.039152]
[1737425655859,0.039146,102320.0,102300.0,0.039152]
[1737425656263,0.399942,102330.0,102300.0,0.039152]
[1737425657759,0.399942,102330.0,102310.0,0.039148]
[1737425659968,0.3608,102330.0,102300.0,0.37224565]
[1737425660166,0.38728707,102340.0,102300.0,0.49724565]
[1737425660469,0.039141,102330.0,102310.0,0.039149]
[1737425660969,0.039141,102330.0,102300.0,0.17559765]
[1737425661164,0.039149,102310.0,102300.0,0.01144565]
[1737425661369,0.039154,102300.0,102280.0,0.03916]
[1737425661571,2.26075,102310.0,102280.0,0.039161]
[1737425661867,0.039153,102300.0,102280.0,0.039161]
[1737425662572,0.3608,102310.0,102280.0,0.01121854]
[1737425662767,1.5,102310.0,102290.0,0.3608]
[1737425662956,0.3608,102330.0,102300.0,0.3608]
[1737425663161,0.3608,102330.0,102320.0,0.039145]
[1737425663866,0.42582606,102340.0,102320.0,0.039145]
[1737425664071,0.06502606,102340.0,102320.0,0.039145]
[1737425664470,0.42582606,102340.0,102320.0,0.039145]
[1737425664665,0.02588706,102340.0,102330.0,0.399941]
[1737425665065,0.039127,102370.0,102350.0,0.039132]
[1737425665469,0.039127,102370.0,102350.0,0.039134]
[1737425668270,0.29188074,102380.0,102350.0,0.039131]
[1737425668467,0.29188074,102380.0,102350.0,0.05065544]
[1737425668674,0.29188074,102380.0,102360.0,0.03913]
[1737425669066,0.4770269,102380.0,102350.0,0.01152544]
[1737425669270,0.1162269,102380.0,102370.0,0.399926]
[1737425669876,0.1162269,102380.0,102370.0,0.49760609]
[1737425670071,0.1162269,102380.0,102370.0,0.399926]
[1737425670270,0.1162269,102380.0,102370.0,0.039126]
[1737425670470,0.1162269,102380.0,102370.0,0.399926]
[1737425671475,0.1162269,102380.0,102360.0,0.7232]
[1737425671476,0.1553489,102380.0,102360.0,0.282329]
[1737425671674,0.039126,102370.0,102350.0,0.039133]
[1737425671874,0.399926,102370.0,102350.0,0.039133]
[1737425672072,1.5,102360.0,102340.0,0.37196841]
[1737425672379,0.039131,102360.0,102340.0,0.37196841]
[1737425672584,0.039131,102360.0,102350.0,0.039134]
[1737425672777,1.539131,102360.0,102350.0,0.039134]
[1737425673192,0.3608,102360.0,102340.0,0.05030541]
[1737425673384,0.039134,102350.0,102340.0,0.05030541]
[1737425673691,0.39993,102360.0,102340.0,0.05030541]
[1737425674182,0.3608,102360.0,102340.0,0.01116841]
[1737425674378,0.3608,102360.0,102350.0,0.039134]
[1737425675089,0.5161539,102370.0,102350.0,0.039134]
[1737425675387,0.1553539,102370.0,102350.0,0.039134]
[1737425675981,0.5161539,102370.0,102350.0,0.039134]
[1737425676584,0.03913,102360.0,102340.0,0.399937]
[1737425676785,0.4770269,102370.0,102340.0,0.3608]
[1737425676982,0.5161529,102370.0,102350.0,0.039133]
[1737425677583,0.39993,102360.0,102340.0,0.399937]
[1737425677783,0.53641914,102360.0,102340.0,0.039137]
[1737425678186,0.3608,102350.0,102340.0,0.039137]
[1737425679494,0.399928,102370.0,102340.0,0.039135]
[1737425679899,0.399928,102370.0,102350.0,0.039134]
[1737425680395,0.3608,102370.0,102350.0,0.039134]
[1737425681301,0.1162269,102380.0,102370.0,0.039126]
[1737425681498,0.14674986,102390.0,102380.0,0.039122]
[1737425682004,0.17034035,102400.0,102380.0,0.49760209]
[1737425682301,0.91209314,102430.0,102380.0,0.49760209]
[1737425682302,0.20304024,102440.0,102390.0,0.53640814]
[1737425682494,0.20304024,102440.0,102430.0,0.039103]
[1737425682890,0.20304024,102440.0,102430.0,0.399903]
[1737425683203,0.20304024,102440.0,102430.0,0.039103]
[1737425683697,0.24214324,102440.0,102410.0,0.3608]
[1737425683905,0.60294324,102440.0,102410.0,0.3608]
[1737425684105,0.60294324,102440.0,102420.0,0.039107]
[1737425684305,0.039103,102430.0,102410.0,0.41142046]
[1737425684496,0.60294024,102440.0,102420.0,0.039107]
[1737425685908,1.82712104,102460.0,102420.0,0.49728914]
[1737425685909,0.36132001,102460.0,102420.0,0.49728914]
[1737425686204,0.3608,102460.0,102440.0,0.039098]
[1737425686394,0.399892,102460.0,102440.0,0.039098]
[1737425687206,0.3608,102450.0,102440.0,0.039098]
[1737425688410,0.3608,102450.0,102410.0,0.37230946]
[1737425688411,0.49728914,102450.0,102410.0,0.37230946]
[1737425688600,0.49728914,102450.0,102420.0,0.3608]
[1737425688601,1.5,102430.0,102420.0,0.3608]
[1737425688793,1.5,102430.0,102420.0,0.399907]
[1737425688999,0.399896,102450.0,102430.0,0.039101]
[1737425689407,1.5,102440.0,102430.0,0.039101]
[1737425689707,0.3608,102450.0,102440.0,0.039099]
[1737425690902,1.90041201,102460.0,102440.0,0.039099]
[1737425691107,1.899892,102460.0,102440.0,0.039099]
[1737425691510,1.8608,102460.0,102430.0,0.3608]
[1737425691703,0.3608,102440.0,102420.0,0.399906]
[1737425692212,1.5,102430.0,102420.0,0.399906]
[1737425692601,0.3608,102440.0,102420.0,0.399906]
[1737425692804,0.039097,102450.0,102430.0,0.039103]
[1737425693097,1.899897,102450.0,102430.0,0.039103]
[1737425693911,1.924297,102450.0,102430.0,0.039103]
[1737425695816,0.424297,102450.0,102430.0,0.039103]
[1737425696413,0.0391,102440.0,102420.0,0.05011761]
[1737425696616,0.3999,102440.0,102420.0,0.039106]
[1737425697508,0.0391,102440.0,102430.0,0.039103]
[1737425697711,0.3999,102440.0,102420.0,0.039103]
[1737425698013,0.3608,102440.0,102410.0,0.45783583]
[1737425698214,0.3852,102450.0,102430.0,0.039101]
[1737425698517,0.424296,102450.0,102430.0,0.039101]
[1737425698815,0.3999,102440.0,102420.0,0.399906]
[1737425699007,0.3999,102440.0,102420.0,0.039106]
[1737425699412,0.3999,102440.0,102420.0,0.12502963]
[1737425700215,0.3999,102440.0,102420.0,0.039106]
[1737425700416,0.039107,102420.0,102390.0,0.00146477]
[1737425700715,0.48583863,102400.0,102390.0,0.00146477]
[1737425700922,0.399915,102400.0,102390.0,0.00146477]
[1737425701214,0.36132001,102410.0,102400.0,0.039115]
[1737425701410,0.84663563,102410.0,102390.0,0.04058277]
[1737425701611,0.399915,102400.0,102390.0,0.00146477]
[1737425702112,0.48583863,102400.0,102390.0,0.00146477]
[1737425702617,0.399915,102400.0,102390.0,0.00146477]
[1737425702818,0.48583863,102400.0,102390.0,0.00146477]
[1737425703016,0.48583863,102400.0,102380.0,0.0111776]
[1737425703017,0.73083863,102400.0,102380.0,0.00010178]
[1737425703221,0.399919,102390.0,102380.0,0.00010178]
[1737425704006,0.48584263,102390.0,102380.0,0.00010178]
[1737425704511,0.61246366,102390.0,102350.0,0.039131]
[1737425704711,0.3608,102370.0,102350.0,0.039131]
[1737425705615,0.44672363,102370.0,102340.0,0.156835]
[1737425705820,0.399927,102370.0,102350.0,0.039133]
[1737425706221,0.48597682,102360.0,102340.0,0.01104836]
[1737425706512,0.3608,102350.0,102330.0,0.161941]
[1737425706821,0.00012019,102360.0,102340.0,0.12505963]
[1737425707020,0.00012019,102360.0,102350.0,0.039134]
[1737425707514,0.00012019,102360.0,102330.0,0.53395725]
[1737425707723,0.40005219,102360.0,102330.0,0.53395725]
[1737425708021,0.3608,102350.0,102330.0,0.61988088]
[1737425708219,0.3608,102350.0,102330.0,0.53395725]
[1737425708727,0.3608,102350.0,102330.0,0.61988088]
[1737425709121,0.3608,102350.0,102330.0,0.41115725]
[1737425709326,0.399936,102350.0,102330.0,0.05035725]
[1737425710121,0.68524382,102360.0,102350.0,0.039134]
[1737425710122,0.00012019,102360.0,102350.0,0.039134]
[1737425710715,0.399921,102390.0,102360.0,0.039128]
[1737425710916,0.3608,102390.0,102370.0,0.08592363]
[1737425711123,0.638311,102410.0,102380.0,0.12504263]
[1737425711323,0.2384,102410.0,102380.0,0.12504263]
[1737425711618,0.2384,102410.0,102380.0,0.039122]
[1737425711619,0.399919,102400.0,102380.0,0.039122]
[1737425712023,0.039119,102400.0,102380.0,0.039122]
[1737425712223,0.039119,102400.0,102380.0,0.399922]
[1737425712424,0.039119,102400.0,102380.0,0.039122]
[1737425712620,0.1740552,102400.0,102380.0,0.12504563]
[1737425713320,0.5739712,102400.0,102380.0,0.039122]
[1737425714026,0.2131712,102400.0,102380.0,0.039122]
[1737425714221,0.039119,102390.0,102370.0,0.039125]
[1737425714824,0.039123,102380.0,102370.0,0.01100642]
[1737425715129,0.039129,102370.0,102350.0,0.272333]
[1737425715322,0.039129,102370.0,102350.0,0.155233]
[1737425715516,0.3608,102360.0,102330.0,0.64330458]
[1737425715722,0.399935,102350.0,102330.0,0.28250458]
[1737425716231,0.399935,102350.0,102330.0,0.29313392]
[1737425716729,0.399935,102350.0,102330.0,0.05123392]
[1737425717528,0.3608,102350.0,102330.0,0.05123392]
[1737425717914,0.3608,102350.0,102330.0,0.41203392]
[1737425719027,0.399932,102360.0,102330.0,0.41203392]
[1737425720126,0.36132001,102370.0,102350.0,0.3608]
[1737425720429,0.399923,102380.0,102360.0,0.039129]
[1737425721429,0.48585263,102370.0,102340.0,0.399936]
[1737425722129,0.399929,102370.0,102350.0,0.039134]
[1737425722828,0.54517144,102380.0,102360.0,0.039127]
[1737425723023,0.59197207,102380.0,102340.0,0.3608]
[1737425723220,0.399926,102370.0,102350.0,0.039133]
[1737425723527,0.39993,102360.0,102340.0,0.399937]
[1737425723923,0.48585363,102360.0,102340.0,0.039137]
[1737425724227,0.48585363,102360.0,102330.0,0.37289492]
[1737425724228,0.039138,102340.0,102330.0,0.00146558]
[1737425724427,0.039141,102330.0,102320.0,8.208e-05]
[1737425724625,0.3608,102340.0,102320.0,8.208e-05]
[1737425724820,0.44672363,102340.0,102320.0,8.208e-05]
[1737425725015,0.48586463,102330.0,102320.0,8.208e-05]
[1737425726533,0.74672363,102330.0,102290.0,0.26686642]
[1737425726720,0.48587363,102310.0,102290.0,0.22770942]
[1737425726915,0.39995,102310.0,102290.0,0.22770942]
[1737425727224,0.39995,102310.0,102290.0,0.26686342]